[Event "*** Qualifier 3: Titled Tuesday 3|2 Blitz"]
[Site "Chess.com"]
[Date "2017.04.18"]
[Round "5"]
[White "PelinGorki"]
[Black "fastestmindalive"]
[Result "0-1"]
[WhiteElo "2368"]
[BlackElo "2440"]
[TimeControl "180+2"]
[EndTime "14:09:21 PDT"]
[Termination "fastestmindalive won by resignation"]

1. e4 {[%clk 0:03:02]} 1... c5 {[%clk 0:02:55.2]} 2. Nf3 {[%clk 0:03:02.6]} 2...
e6 {[%clk 0:02:56.1]} 3. d4 {[%clk 0:03:03.2]} 3... cxd4 {[%clk 0:02:58]} 4.
Nxd4 {[%clk 0:03:05]} 4... Bc5 {[%clk 0:02:59.5]} 5. Nb3 {[%clk 0:03:05.6]} 5...
Bb6 {[%clk 0:02:59.7]} 6. c4 {[%clk 0:03:05.9]} 6... Ne7 {[%clk 0:02:58.9]} 7.
Nc3 {[%clk 0:03:04.3]} 7... O-O {[%clk 0:02:59.7]} 8. c5 {[%clk 0:03:03]} 8...
Bc7 {[%clk 0:03:00.1]} 9. Be3 {[%clk 0:03:03.8]} 9... f5 {[%clk 0:02:53]} 10.
Bd3 {[%clk 0:02:55.8]} 10... Nbc6 {[%clk 0:02:43.8]} 11. Qe2 {[%clk 0:02:48.8]}
11... Ne5 {[%clk 0:02:39.4]} 12. O-O-O {[%clk 0:02:40.4]} 12... f4 {[%clk
0:02:36.6]} 13. Bd2 {[%clk 0:02:40.5]} 13... Nxd3+ {[%clk 0:02:33.2]} 14. Qxd3
{[%clk 0:02:42]} 14... b6 {[%clk 0:02:31.7]} 15. g3 {[%clk 0:02:34]} 15... bxc5
{[%clk 0:02:25]} 16. gxf4 {[%clk 0:02:31.8]} 16... d5 {[%clk 0:02:00.7]} 17.
Nxc5 {[%clk 0:02:27.2]} 17... Rb8 {[%clk 0:01:25.6]} 18. Rhg1 {[%clk 0:02:23.3]}
18... Bd6 {[%clk 0:01:13.6]} 19. Nb3 {[%clk 0:02:19.1]} 19... Qb6 {[%clk
0:01:04.8]} 20. e5 {[%clk 0:02:14.7]} 20... Ba6 {[%clk 0:00:53.9]} 21. Qh3
{[%clk 0:02:12.1]} 21... Bb4 {[%clk 0:00:46.6]} 22. Rg5 {[%clk 0:01:55.3]} 22...
Nf5 {[%clk 0:00:46.2]} 23. Rxf5 {[%clk 0:01:53.3]} 23... exf5 {[%clk 0:00:38.8]}
24. Nxd5 {[%clk 0:01:51]} 24... Bxd2+ {[%clk 0:00:36]} 25. Rxd2 {[%clk 0:01:49]}
25... Rbc8+ {[%clk 0:00:34.1]} 26. Kb1 {[%clk 0:01:47.6]} 26... Qe6 {[%clk
0:00:32]} 27. Ne3 {[%clk 0:01:35.9]} 27... Rfd8 {[%clk 0:00:19.2]} 28. Nd4
{[%clk 0:01:34.5]} 28... Rxd4 {[%clk 0:00:06.6]} 29. Rxd4 {[%clk 0:01:34.2]}
29... Qc6 {[%clk 0:00:08.2]} 30. a3 {[%clk 0:01:19.6]} 30... Qc1+ {[%clk
0:00:08.1]} 31. Ka2 {[%clk 0:01:20.3]} 31... Rb8 {[%clk 0:00:09.5]} 32. Rb4
{[%clk 0:01:18.2]} 32... Rxb4 {[%clk 0:00:10.4]} 33. axb4 {[%clk 0:01:20.1]}
33... Bd3 {[%clk 0:00:11.5]} 34. Nxf5 {[%clk 0:00:57.1]} 34... Qb1+ {[%clk
0:00:12.1]} 35. Ka3 {[%clk 0:00:58]} 35... Bxf5 {[%clk 0:00:13.8]} 36. Qb3+
{[%clk 0:00:53.3]} 36... Kh8 {[%clk 0:00:14]} 37. Qd5 {[%clk 0:00:52.1]} 37...
h6 {[%clk 0:00:14.3]} 38. b5 {[%clk 0:00:44]} 38... Qa1+ {[%clk 0:00:13.4]} 39.
Kb3 {[%clk 0:00:45.5]} 39... Qf1 {[%clk 0:00:10.8]} 40. b6 {[%clk 0:00:38.6]}
40... axb6 {[%clk 0:00:11.3]} 41. Qd4 {[%clk 0:00:39.6]} 41... Qb5+ {[%clk
0:00:11.1]} 42. Kc3 {[%clk 0:00:34.3]} 42... Kh7 {[%clk 0:00:10.2]} 43. b4
{[%clk 0:00:29]} 43... Qc6+ {[%clk 0:00:09.7]} 44. Kd2 {[%clk 0:00:28.5]} 44...
Qc2+ {[%clk 0:00:10.4]} 45. Ke3 {[%clk 0:00:29.8]} 45... Qb3+ {[%clk 0:00:09.5]}
46. Kd2 {[%clk 0:00:30.9]} 46... b5 {[%clk 0:00:08.1]} 47. h4 {[%clk 0:00:29.9]}
47... h5 {[%clk 0:00:08.4]} 48. Ke2 {[%clk 0:00:27.7]} 48... Bg4+ {[%clk
0:00:09]} 49. Kd2 {[%clk 0:00:27.3]} 49... Bf5 {[%clk 0:00:10.7]} 50. Ke2 {[%clk
0:00:27.8]} 50... Qc2+ {[%clk 0:00:12.2]} 51. Ke3 {[%clk 0:00:27.5]} 51... Qc1+
{[%clk 0:00:13.8]} 52. Ke2 {[%clk 0:00:29]} 52... Qh1 {[%clk 0:00:15.1]} 53. Qc5
{[%clk 0:00:27.3]} 53... Qxh4 {[%clk 0:00:13.8]} 54. Qxb5 {[%clk 0:00:24.7]}
54... Qxf4 {[%clk 0:00:15.3]} 55. Qd5 {[%clk 0:00:23.6]} 55... Qxb4 {[%clk
0:00:15.2]} 56. e6 {[%clk 0:00:24.8]} 56... Qe4+ {[%clk 0:00:16.1]} 57. Qxe4
{[%clk 0:00:25.4]} 57... Bxe4 {[%clk 0:00:18]} 58. Ke3 {[%clk 0:00:26.2]} 58...
Bc6 {[%clk 0:00:19.1]} 59. Kf4 {[%clk 0:00:19.4]} 59... Kg6 {[%clk 0:00:20.2]}
60. Ke5 {[%clk 0:00:20]} 60... Kg5 {[%clk 0:00:19.1]} 61. Kd6 {[%clk 0:00:20.4]}
61... Ba4 {[%clk 0:00:20]} 62. Ke5 {[%clk 0:00:21.9]} 62... h4 {[%clk 0:00:21]}
63. f4+ {[%clk 0:00:23.4]} 63... Kg4 {[%clk 0:00:22.2]} 64. f5 {[%clk
0:00:24.8]} 64... h3 {[%clk 0:00:23]} 0-1

[Event "*** Qualifier 3: Titled Tuesday 3|2 Blitz"]
[Site "Chess.com"]
[Date "2017.04.18"]
[Round "5"]
[White "OparinGrigoriy"]
[Black "scrapnel"]
[Result "1/2-1/2"]
[WhiteElo "2613"]
[BlackElo "2384"]
[TimeControl "180+2"]
[EndTime "14:10:02 PDT"]
[Termination "Game drawn - insufficient material"]

1. Nf3 {[%clk 0:03:02]} 1... d5 {[%clk 0:02:59.1]} 2. g3 {[%clk 0:03:02.9]} 2...
c6 {[%clk 0:03:00]} 3. Bg2 {[%clk 0:03:04.8]} 3... Bg4 {[%clk 0:03:00.7]} 4. O-O
{[%clk 0:03:06.7]} 4... e6 {[%clk 0:03:01.7]} 5. c4 {[%clk 0:03:07.6]} 5... Nd7
{[%clk 0:02:57.7]} 6. d3 {[%clk 0:03:08.7]} 6... dxc4 {[%clk 0:02:52.6]} 7. dxc4
{[%clk 0:03:10.6]} 7... Ngf6 {[%clk 0:02:48.1]} 8. Nc3 {[%clk 0:03:10.2]} 8...
Bxf3 {[%clk 0:02:48.5]} 9. Bxf3 {[%clk 0:03:10.9]} 9... Ne5 {[%clk 0:02:48.7]}
10. Qb3 {[%clk 0:03:11.3]} 10... Nxf3+ {[%clk 0:02:48.6]} 11. exf3 {[%clk
0:03:13.2]} 11... Qc8 {[%clk 0:02:40.1]} 12. Be3 {[%clk 0:03:12.7]} 12... Be7
{[%clk 0:02:40.3]} 13. Rad1 {[%clk 0:03:14.3]} 13... O-O {[%clk 0:02:41.1]} 14.
h4 {[%clk 0:03:10.8]} 14... e5 {[%clk 0:02:28.7]} 15. Kg2 {[%clk 0:03:11.4]}
15... Re8 {[%clk 0:02:27.9]} 16. Rd2 {[%clk 0:03:09.6]} 16... b6 {[%clk
0:02:13.6]} 17. Rfd1 {[%clk 0:03:10.8]} 17... Qe6 {[%clk 0:02:13.9]} 18. Qa4
{[%clk 0:03:06.1]} 18... e4 {[%clk 0:02:13.1]} 19. fxe4 {[%clk 0:02:59.3]} 19...
Nxe4 {[%clk 0:02:13.4]} 20. Nxe4 {[%clk 0:03:00.7]} 20... Qxe4+ {[%clk
0:02:14.4]} 21. Kg1 {[%clk 0:03:02.6]} 21... b5 {[%clk 0:02:08.9]} 22. Qc2
{[%clk 0:03:01.8]} 22... Qf3 {[%clk 0:01:37.6]} 23. cxb5 {[%clk 0:02:42.9]}
23... cxb5 {[%clk 0:01:35.6]} 24. Qd3 {[%clk 0:02:44.2]} 24... a6 {[%clk
0:01:25.3]} 25. Qd5 {[%clk 0:02:43.8]} 25... Qxd5 {[%clk 0:01:21.1]} 26. Rxd5
{[%clk 0:02:45.7]} 26... Bf6 {[%clk 0:01:21.8]} 27. b3 {[%clk 0:02:46.4]} 27...
Red8 {[%clk 0:01:09.3]} 28. Kg2 {[%clk 0:02:47.6]} 28... Rxd5 {[%clk 0:01:07.8]}
29. Rxd5 {[%clk 0:02:49.5]} 29... g6 {[%clk 0:00:58.2]} 30. h5 {[%clk
0:02:49.2]} 30... Kf8 {[%clk 0:00:44.1]} 31. h6 {[%clk 0:02:43.6]} 31... Ke8
{[%clk 0:00:38.6]} 32. Rd6 {[%clk 0:02:42.8]} 32... Be7 {[%clk 0:00:36]} 33. Rb6
{[%clk 0:02:43.4]} 33... Kd7 {[%clk 0:00:33.9]} 34. Rb7+ {[%clk 0:02:44.9]}
34... Ke6 {[%clk 0:00:34.6]} 35. g4 {[%clk 0:02:44.5]} 35... f5 {[%clk
0:00:32.8]} 36. Kf3 {[%clk 0:02:36.5]} 36... fxg4+ {[%clk 0:00:32.9]} 37. Kxg4
{[%clk 0:02:37.7]} 37... b4 {[%clk 0:00:33.9]} 38. f4 {[%clk 0:02:34.7]} 38...
a5 {[%clk 0:00:34]} 39. Bb6 {[%clk 0:02:34.3]} 39... a4 {[%clk 0:00:33.1]} 40.
Ba7 {[%clk 0:02:27.2]} 40... axb3 {[%clk 0:00:33]} 41. axb3 {[%clk 0:02:29.1]}
41... Rc8 {[%clk 0:00:32.8]} 42. Bd4 {[%clk 0:02:30]} 42... Rc1 {[%clk
0:00:30.7]} 43. Rb6+ {[%clk 0:02:29.5]} 43... Kd5 {[%clk 0:00:31.2]} 44. Bf6
{[%clk 0:02:25.7]} 44... Bd6 {[%clk 0:00:29]} 45. Rb7 {[%clk 0:02:18.3]} 45...
Rg1+ {[%clk 0:00:27.9]} 46. Kf3 {[%clk 0:02:18.6]} 46... Rf1+ {[%clk 0:00:28.5]}
47. Ke2 {[%clk 0:02:18.1]} 47... Rxf4 {[%clk 0:00:28.3]} 48. Bg5 {[%clk
0:02:18.1]} 48... Re4+ {[%clk 0:00:25.4]} 49. Kf3 {[%clk 0:02:18.7]} 49... Re5
{[%clk 0:00:23.9]} 50. Kg4 {[%clk 0:02:14.3]} 50... Re4+ {[%clk 0:00:24.5]} 51.
Kf3 {[%clk 0:02:14]} 51... Re5 {[%clk 0:00:25.6]} 52. Bd2 {[%clk 0:02:07.2]}
52... Re7 {[%clk 0:00:25.5]} 53. Rb6 {[%clk 0:02:02.2]} 53... Rf7+ {[%clk
0:00:24.2]} 54. Ke2 {[%clk 0:02:02]} 54... Bc5 {[%clk 0:00:25.3]} 55. Rb8 {[%clk
0:02:02.3]} 55... Rf2+ {[%clk 0:00:24.4]} 56. Kd3 {[%clk 0:02:03.6]} 56... Rf3+
{[%clk 0:00:25.5]} 57. Ke2 {[%clk 0:02:04.8]} 57... Rxb3 {[%clk 0:00:25.4]} 58.
Rh8 {[%clk 0:02:05.6]} 58... Rh3 {[%clk 0:00:25.2]} 59. Rxh7 {[%clk 0:02:07]}
59... Kc4 {[%clk 0:00:26.2]} 60. Rc7 {[%clk 0:02:02.3]} 60... b3 {[%clk
0:00:25.6]} 61. h7 {[%clk 0:02:01.9]} 61... b2 {[%clk 0:00:23.8]} 62. Rb7 {[%clk
0:02:00.8]} 62... Rxh7 {[%clk 0:00:20.6]} 63. Rxb2 {[%clk 0:02:01.8]} 63... Rh2+
{[%clk 0:00:21.5]} 64. Kf3 {[%clk 0:01:59]} 64... Ba3 {[%clk 0:00:20.7]} 65.
Rc2+ {[%clk 0:01:57.2]} 65... Kd3 {[%clk 0:00:19.9]} 66. Rc6 {[%clk 0:01:58.4]}
66... Rxd2 {[%clk 0:00:20.1]} 67. Rxg6 {[%clk 0:01:58.7]} 67... Bc5 {[%clk
0:00:20.2]} 68. Rg2 {[%clk 0:01:58.7]} 68... Rd1 {[%clk 0:00:20.6]} 69. Rg6
{[%clk 0:01:57.2]} 69... Rf1+ {[%clk 0:00:21.3]} 70. Kg4 {[%clk 0:01:58.6]}
70... Bd4 {[%clk 0:00:21.1]} 71. Rg5 {[%clk 0:01:58.9]} 71... Ke4 {[%clk
0:00:21.5]} 72. Rg6 {[%clk 0:02:00]} 72... Be5 {[%clk 0:00:19.5]} 73. Rg5 {[%clk
0:02:01.1]} 73... Rf4+ {[%clk 0:00:19]} 74. Kh5 {[%clk 0:02:01.3]} 74... Rf6
{[%clk 0:00:20.4]} 75. Kg4 {[%clk 0:02:02]} 75... Bf4 {[%clk 0:00:21.1]} 76. Rg7
{[%clk 0:02:00]} 76... Rf8 {[%clk 0:00:21]} 77. Rg6 {[%clk 0:02:00.7]} 77... Be5
{[%clk 0:00:21.6]} 78. Rg5 {[%clk 0:02:02]} 78... Rf1 {[%clk 0:00:22.4]} 79. Rg6
{[%clk 0:02:02.6]} 79... Bf6 {[%clk 0:00:23.6]} 80. Kh5 {[%clk 0:02:02.1]} 80...
Kf5 {[%clk 0:00:24.2]} 81. Rg5+ {[%clk 0:02:03.6]} 81... Kf4 {[%clk 0:00:25]}
82. Rg4+ {[%clk 0:02:04.1]} 82... Ke5 {[%clk 0:00:26]} 83. Rg6 {[%clk
0:02:04.8]} 83... Ke6 {[%clk 0:00:26.7]} 84. Kg4 {[%clk 0:02:04.2]} 84... Rh1
{[%clk 0:00:26.6]} 85. Kf3 {[%clk 0:02:05]} 85... Kf5 {[%clk 0:00:26.7]} 86. Rg2
{[%clk 0:02:06.5]} 86... Ra1 {[%clk 0:00:26.4]} 87. Rc2 {[%clk 0:02:07.3]} 87...
Be5 {[%clk 0:00:23.6]} 88. Ke2 {[%clk 0:02:08.1]} 88... Ke4 {[%clk 0:00:24.1]}
89. Rd2 {[%clk 0:02:09.6]} 89... Bd4 {[%clk 0:00:25]} 90. Rc2 {[%clk 0:02:11]}
90... Ra3 {[%clk 0:00:26]} 91. Rd2 {[%clk 0:02:12.2]} 91... Rb3 {[%clk 0:00:27]}
92. Rc2 {[%clk 0:02:13.5]} 92... Rh3 {[%clk 0:00:28]} 93. Rd2 {[%clk 0:02:14.6]}
93... Bc3 {[%clk 0:00:28.6]} 94. Rc2 {[%clk 0:02:14.8]} 94... Kd4 {[%clk
0:00:29]} 95. Kd1 {[%clk 0:02:15.1]} 95... Rh1+ {[%clk 0:00:28.1]} 96. Ke2
{[%clk 0:02:16.6]} 96... Kc4 {[%clk 0:00:28.6]} 97. Kf3 {[%clk 0:02:15.1]} 97...
Kd3 {[%clk 0:00:28.9]} 98. Rg2 {[%clk 0:02:15.7]} 98... Bd4 {[%clk 0:00:29]} 99.
Rg6 {[%clk 0:02:17.1]} 99... Rf1+ {[%clk 0:00:29.1]} 100. Kg4 {[%clk 0:02:18.1]}
100... Ke4 {[%clk 0:00:30.2]} 101. Rg5 {[%clk 0:02:18.2]} 101... Be5 {[%clk
0:00:29.5]} 102. Rg6 {[%clk 0:02:19.5]} 102... Bf6 {[%clk 0:00:30.1]} 103. Kh5
{[%clk 0:02:20.3]} 103... Rf4 {[%clk 0:00:29.3]} 104. Rg4 {[%clk 0:02:20]}
104... Rxg4 {[%clk 0:00:25.4]} 105. Kxg4 {[%clk 0:02:21.9]} 1/2-1/2

[Event "*** Qualifier 3: Titled Tuesday 3|2 Blitz"]
[Site "Chess.com"]
[Date "2017.04.18"]
[Round "5"]
[White "dhanushbharadwaj"]
[Black "amazingoid"]
[Result "0-1"]
[WhiteElo "2443"]
[BlackElo "2348"]
[TimeControl "180+2"]
[EndTime "14:10:15 PDT"]
[Termination "amazingoid won by resignation"]

1. Nf3 {[%clk 0:03:02]} 1... c5 {[%clk 0:02:58.1]} 2. c4 {[%clk 0:02:58]} 2...
Nc6 {[%clk 0:02:58.6]} 3. Nc3 {[%clk 0:02:56.5]} 3... g6 {[%clk 0:02:59.7]} 4.
e3 {[%clk 0:02:56.9]} 4... Nf6 {[%clk 0:02:59.1]} 5. d4 {[%clk 0:02:57.8]} 5...
cxd4 {[%clk 0:03:00.4]} 6. exd4 {[%clk 0:02:58.8]} 6... d5 {[%clk 0:03:01.7]} 7.
cxd5 {[%clk 0:02:42.9]} 7... Nxd5 {[%clk 0:03:02.8]} 8. Bc4 {[%clk 0:02:43.6]}
8... Nb6 {[%clk 0:03:03.9]} 9. Bb5 {[%clk 0:02:43.3]} 9... Bd7 {[%clk
0:02:54.8]} 10. O-O {[%clk 0:02:34.9]} 10... Bg7 {[%clk 0:02:55.5]} 11. Be3
{[%clk 0:02:34]} 11... Nb4 {[%clk 0:02:43.4]} 12. Qb3 {[%clk 0:01:59.9]} 12...
Bxb5 {[%clk 0:02:29.8]} 13. Nxb5 {[%clk 0:01:59.6]} 13... N4d5 {[%clk
0:02:28.1]} 14. Rac1 {[%clk 0:01:52.3]} 14... O-O {[%clk 0:02:27.2]} 15. Ne5
{[%clk 0:01:34.9]} 15... a6 {[%clk 0:01:55.1]} 16. Na3 {[%clk 0:01:29.6]} 16...
Rc8 {[%clk 0:01:45.6]} 17. Rxc8 {[%clk 0:01:11.4]} 17... Qxc8 {[%clk 0:01:46.1]}
18. Nec4 {[%clk 0:01:10]} 18... Nxc4 {[%clk 0:01:19.3]} 19. Nxc4 {[%clk
0:01:02.2]} 19... Qe6 {[%clk 0:00:55.7]} 20. Re1 {[%clk 0:00:55.6]} 20... b5
{[%clk 0:00:49.6]} 21. Na5 {[%clk 0:00:48.2]} 21... Rc8 {[%clk 0:00:43.2]} 22.
Nb7 {[%clk 0:00:31.8]} 22... Nxe3 {[%clk 0:00:31.6]} 23. Qxe6 {[%clk 0:00:31.4]}
23... fxe6 {[%clk 0:00:33.2]} 24. fxe3 {[%clk 0:00:32.7]} 24... Rc2 {[%clk
0:00:32.6]} 25. b4 {[%clk 0:00:25.5]} 25... Rxa2 {[%clk 0:00:30.5]} 26. Nc5
{[%clk 0:00:26.5]} 26... e5 {[%clk 0:00:30.3]} 27. d5 {[%clk 0:00:26.7]} 27...
Rb2 {[%clk 0:00:27]} 28. Nxa6 {[%clk 0:00:27.1]} 28... e4 {[%clk 0:00:27.8]} 29.
Rc1 {[%clk 0:00:26.9]} 29... Bh6 {[%clk 0:00:28.3]} 30. Rc8+ {[%clk 0:00:26.8]}
30... Kf7 {[%clk 0:00:29.1]} 31. Rc3 {[%clk 0:00:27.7]} 31... Kf6 {[%clk
0:00:27.1]} 32. Kf1 {[%clk 0:00:13.3]} 32... Ke5 {[%clk 0:00:25.7]} 33. g3
{[%clk 0:00:14.4]} 33... Rxh2 {[%clk 0:00:20.3]} 34. Rc5 {[%clk 0:00:15]} 34...
Bxe3 {[%clk 0:00:19.7]} 35. Rxb5 {[%clk 0:00:16.3]} 35... Rf2+ {[%clk
0:00:16.9]} 36. Ke1 {[%clk 0:00:16.8]} 36... Rb2 {[%clk 0:00:18.5]} 37. Rb7
{[%clk 0:00:15.7]} 37... Kxd5 {[%clk 0:00:18.6]} 38. Rxe7 {[%clk 0:00:15.2]}
38... h5 {[%clk 0:00:19.6]} 39. Kf1 {[%clk 0:00:14.8]} 39... Rf2+ {[%clk
0:00:19.9]} 40. Ke1 {[%clk 0:00:15.8]} 40... Rb2 {[%clk 0:00:21.3]} 41. Kf1
{[%clk 0:00:16.9]} 41... Kd4 {[%clk 0:00:22.8]} 42. Rd7+ {[%clk 0:00:17.2]}
42... Kc3 {[%clk 0:00:23.8]} 43. Rc7+ {[%clk 0:00:18.5]} 43... Kd3 {[%clk
0:00:25.4]} 44. Rd7+ {[%clk 0:00:19.8]} 44... Bd4 {[%clk 0:00:25]} 45. Nc5+
{[%clk 0:00:20.9]} 45... Ke3 {[%clk 0:00:26.4]} 46. Ne6 {[%clk 0:00:19.8]} 46...
Bb6 {[%clk 0:00:22.8]} 47. Nf4 {[%clk 0:00:18.1]} 47... Kf3 {[%clk 0:00:22.9]}
48. Ke1 {[%clk 0:00:14.9]} 48... e3 {[%clk 0:00:18.9]} 49. Kd1 {[%clk
0:00:14.6]} 49... e2+ {[%clk 0:00:18.6]} 50. Nxe2 {[%clk 0:00:15.3]} 50... Rxb4
{[%clk 0:00:12.8]} 51. Rf7+ {[%clk 0:00:15.8]} 51... Kg4 {[%clk 0:00:13.4]} 52.
Rf6 {[%clk 0:00:16.7]} 52... g5 {[%clk 0:00:14.1]} 53. Kd2 {[%clk 0:00:16.6]}
53... Bc7 {[%clk 0:00:11]} 54. Kc3 {[%clk 0:00:11.6]} 54... Re4 {[%clk
0:00:10.8]} 55. Kd3 {[%clk 0:00:12.3]} 55... Re7 {[%clk 0:00:09.8]} 56. Rg6
{[%clk 0:00:13.1]} 56... Re5 {[%clk 0:00:06.4]} 57. Rg7 {[%clk 0:00:10.4]} 57...
Rc5 {[%clk 0:00:07.2]} 58. Rg6 {[%clk 0:00:09]} 58... Bxg3 {[%clk 0:00:08]} 59.
Nd4 {[%clk 0:00:10.6]} 59... h4 {[%clk 0:00:07.6]} 60. Ke4 {[%clk 0:00:11.6]}
60... Re5+ {[%clk 0:00:08.2]} 61. Kd3 {[%clk 0:00:12.5]} 61... Bf4 {[%clk
0:00:09.8]} 62. Rh6 {[%clk 0:00:13.2]} 62... Re3+ {[%clk 0:00:10.8]} 63. Kc4
{[%clk 0:00:13.7]} 63... Re8 {[%clk 0:00:11.3]} 64. Kd3 {[%clk 0:00:14.5]} 64...
Rd8 {[%clk 0:00:12.7]} 65. Ke4 {[%clk 0:00:15.9]} 65... Re8+ {[%clk 0:00:13.4]}
66. Kd3 {[%clk 0:00:17.2]} 66... Be5 {[%clk 0:00:14.6]} 67. Ne2 {[%clk 0:00:18]}
67... h3 {[%clk 0:00:15.1]} 68. Ke3 {[%clk 0:00:17.9]} 68... Bg3+ {[%clk
0:00:15.7]} 69. Kd2 {[%clk 0:00:18.1]} 69... Kf3 {[%clk 0:00:16]} 70. Ng1+
{[%clk 0:00:16]} 70... Kg4 {[%clk 0:00:12.4]} 71. Nxh3 {[%clk 0:00:17.1]} 71...
Be1+ {[%clk 0:00:11.9]} 72. Kd1 {[%clk 0:00:17.5]} 72... Bh4 {[%clk 0:00:13.2]}
73. Ng1 {[%clk 0:00:18.5]} 73... Re1+ {[%clk 0:00:14.3]} 74. Kd2 {[%clk
0:00:19.6]} 74... Rxg1 {[%clk 0:00:16.2]} 75. Ra6 {[%clk 0:00:20.7]} 75... Rf1
{[%clk 0:00:15.4]} 76. Ke2 {[%clk 0:00:21.7]} 76... Rf4 {[%clk 0:00:17.3]} 77.
Ra8 {[%clk 0:00:22.4]} 77... Kh3 {[%clk 0:00:18.6]} 78. Ke3 {[%clk 0:00:23.7]}
78... Rf7 {[%clk 0:00:19.2]} 79. Ke2 {[%clk 0:00:24.9]} 79... g4 {[%clk
0:00:20.7]} 80. Rg8 {[%clk 0:00:23.6]} 80... g3 {[%clk 0:00:21.3]} 81. Ke3
{[%clk 0:00:24.8]} 81... g2 {[%clk 0:00:22]} 82. Ke2 {[%clk 0:00:25.6]} 82...
Kh2 {[%clk 0:00:22.9]} 83. Rh8 {[%clk 0:00:23.7]} 83... g1=Q {[%clk 0:00:22.8]}
84. Rxh4+ {[%clk 0:00:25.1]} 84... Kg3 {[%clk 0:00:24.2]} 0-1

[Event "*** Qualifier 3: Titled Tuesday 3|2 Blitz"]
[Site "Chess.com"]
[Date "2017.04.18"]
[Round "5"]
[White "Gabix_94"]
[Black "jcibarra"]
[Result "0-1"]
[WhiteElo "2518"]
[BlackElo "2659"]
[TimeControl "180+2"]
[EndTime "14:10:43 PDT"]
[Termination "jcibarra won on time"]

1. e4 {[%clk 0:03:02]} 1... c5 {[%clk 0:03:00.3]} 2. Nf3 {[%clk 0:03:02.5]} 2...
d6 {[%clk 0:03:01.1]} 3. d4 {[%clk 0:03:03.7]} 3... cxd4 {[%clk 0:03:03]} 4.
Qxd4 {[%clk 0:03:05.6]} 4... Nf6 {[%clk 0:03:04.6]} 5. e5 {[%clk 0:03:03.5]}
5... Nc6 {[%clk 0:03:04.5]} 6. Qa4 {[%clk 0:03:03.7]} 6... dxe5 {[%clk
0:02:54.7]} 7. Nxe5 {[%clk 0:03:04.1]} 7... Qc7 {[%clk 0:02:56.2]} 8. Nxc6
{[%clk 0:02:59.8]} 8... Bd7 {[%clk 0:02:54]} 9. Nc3 {[%clk 0:02:44.4]} 9... Bxc6
{[%clk 0:02:40.4]} 10. Bb5 {[%clk 0:02:44]} 10... e6 {[%clk 0:02:38]} 11. Bf4
{[%clk 0:02:42]} 11... Qb6 {[%clk 0:02:27.2]} 12. Be3 {[%clk 0:02:27.6]} 12...
Qc7 {[%clk 0:02:23.8]} 13. O-O-O {[%clk 0:02:23.5]} 13... Be7 {[%clk 0:02:20.2]}
14. Bf4 {[%clk 0:02:20.9]} 14... Qb6 {[%clk 0:02:19.3]} 15. Be3 {[%clk
0:02:20.9]} 15... Qc7 {[%clk 0:02:16.3]} 16. Bxc6+ {[%clk 0:02:05.3]} 16... bxc6
{[%clk 0:02:08.1]} 17. Rhe1 {[%clk 0:02:03.4]} 17... O-O {[%clk 0:02:06.5]} 18.
h3 {[%clk 0:01:55.6]} 18... Nd5 {[%clk 0:02:06.3]} 19. Bd4 {[%clk 0:01:54.4]}
19... Rfb8 {[%clk 0:01:56.1]} 20. Be5 {[%clk 0:01:38.2]} 20... Bd6 {[%clk
0:01:53.6]} 21. Bxd6 {[%clk 0:01:21.9]} 21... Qxd6 {[%clk 0:01:55.5]} 22. Qd4
{[%clk 0:01:11.4]} 22... Rb4 {[%clk 0:01:46.7]} 23. Qe5 {[%clk 0:01:04.8]} 23...
Qc5 {[%clk 0:01:43.8]} 24. Ne4 {[%clk 0:00:50.8]} 24... Qa5 {[%clk 0:01:29.6]}
25. a3 {[%clk 0:00:51.5]} 25... Rc4 {[%clk 0:01:19.3]} 26. Nd6 {[%clk
0:00:42.5]} 26... Rf4 {[%clk 0:01:06.8]} 27. f3 {[%clk 0:00:37.7]} 27... Rf8
{[%clk 0:00:50]} 28. Kb1 {[%clk 0:00:37.8]} 28... Ra4 {[%clk 0:00:46.1]} 29. c4
{[%clk 0:00:30.6]} 29... Nf6 {[%clk 0:00:43.1]} 30. Qxa5 {[%clk 0:00:28.9]}
30... Rxa5 {[%clk 0:00:45]} 31. Ka2 {[%clk 0:00:27.1]} 31... g6 {[%clk 0:00:43]}
32. b4 {[%clk 0:00:28.1]} 32... Ra6 {[%clk 0:00:41.2]} 33. Kb3 {[%clk
0:00:28.9]} 33... Rb6 {[%clk 0:00:40.7]} 34. g4 {[%clk 0:00:26.9]} 34... a5
{[%clk 0:00:37]} 35. b5 {[%clk 0:00:26.4]} 35... cxb5 {[%clk 0:00:36.1]} 36.
Nxb5 {[%clk 0:00:19]} 36... Rc8 {[%clk 0:00:36.6]} 37. a4 {[%clk 0:00:20]} 37...
Rbc6 {[%clk 0:00:34.3]} 38. Rd4 {[%clk 0:00:21.1]} 38... Rc5 {[%clk 0:00:31.7]}
39. f4 {[%clk 0:00:21.3]} 39... h6 {[%clk 0:00:32.7]} 40. Red1 {[%clk
0:00:22.5]} 40... Kg7 {[%clk 0:00:33.2]} 41. Nd6 {[%clk 0:00:22.9]} 41... Rb8+
{[%clk 0:00:33.7]} 42. Nb5 {[%clk 0:00:24.3]} 42... Rbc8 {[%clk 0:00:34.6]} 43.
Nd6 {[%clk 0:00:25.4]} 43... Rb8+ {[%clk 0:00:35.7]} 44. Nb5 {[%clk 0:00:26.7]}
44... e5 {[%clk 0:00:33.5]} 45. fxe5 {[%clk 0:00:26.7]} 45... Rxe5 {[%clk
0:00:35.4]} 46. R1d3 {[%clk 0:00:27.6]} 46... Ne4 {[%clk 0:00:34.7]} 47. Ka3
{[%clk 0:00:28.4]} 47... Nc5 {[%clk 0:00:34.2]} 48. Rf3 {[%clk 0:00:29.7]} 48...
Rb7 {[%clk 0:00:32.6]} 49. Rdf4 {[%clk 0:00:29.9]} 49... Rbe7 {[%clk 0:00:32.8]}
50. Rd4 {[%clk 0:00:27.3]} 50... Re3+ {[%clk 0:00:31.3]} 51. Rxe3 {[%clk
0:00:28.7]} 51... Rxe3+ {[%clk 0:00:33.2]} 52. Ka2 {[%clk 0:00:30.6]} 52... Nxa4
{[%clk 0:00:32.8]} 53. Rd7 {[%clk 0:00:31.6]} 53... Nc5 {[%clk 0:00:29.8]} 54.
Rc7 {[%clk 0:00:32.7]} 54... Ne6 {[%clk 0:00:30.2]} 55. Ra7 {[%clk 0:00:33.8]}
55... Rxh3 {[%clk 0:00:30.8]} 56. Nd6 {[%clk 0:00:34.4]} 56... Rf3 {[%clk
0:00:28.3]} 57. Rxa5 {[%clk 0:00:35.5]} 57... Rf4 {[%clk 0:00:28.2]} 58. Ra7
{[%clk 0:00:34]} 58... h5 {[%clk 0:00:26.6]} 59. gxh5 {[%clk 0:00:35]} 59...
gxh5 {[%clk 0:00:28.5]} 60. Ra5 {[%clk 0:00:35.4]} 60... h4 {[%clk 0:00:26.8]}
61. Kb3 {[%clk 0:00:36.8]} 61... Kg6 {[%clk 0:00:24.7]} 62. Ra1 {[%clk
0:00:37.4]} 62... Rg4 {[%clk 0:00:24.8]} 63. Rh1 {[%clk 0:00:38.1]} 63... f5
{[%clk 0:00:23.2]} 64. Kc3 {[%clk 0:00:37.8]} 64... Kg5 {[%clk 0:00:20.7]} 65.
Nf7+ {[%clk 0:00:37.7]} 65... Kf4 {[%clk 0:00:20.5]} 66. Kd2 {[%clk 0:00:36]}
66... Kg3 {[%clk 0:00:19.2]} 67. Ne5 {[%clk 0:00:35.3]} 67... Re4 {[%clk
0:00:17.1]} 68. Rg1+ {[%clk 0:00:35.1]} 68... Kf2 {[%clk 0:00:17.9]} 69. Rh1
{[%clk 0:00:33.1]} 69... Rxe5 {[%clk 0:00:19]} 70. Rxh4 {[%clk 0:00:34.4]} 70...
f4 {[%clk 0:00:20.5]} 71. c5 {[%clk 0:00:35.8]} 71... Rxc5 {[%clk 0:00:21]} 72.
Rh6 {[%clk 0:00:09.3]} 72... Rd5+ {[%clk 0:00:21.5]} 73. Kc3 {[%clk 0:00:09.9]}
73... Re5 {[%clk 0:00:22.6]} 74. Kd3 {[%clk 0:00:10.5]} 74... f3 {[%clk
0:00:22.9]} 75. Rf6 {[%clk 0:00:11.1]} 75... Kg2 {[%clk 0:00:21.8]} 76. Rg6+
{[%clk 0:00:12.3]} 76... Kf1 {[%clk 0:00:23]} 77. Rf6 {[%clk 0:00:13.3]} 77...
f2 {[%clk 0:00:24]} 78. Kd2 {[%clk 0:00:15]} 78... Kg2 {[%clk 0:00:24]} 79. Rg6+
{[%clk 0:00:15.8]} 79... Ng5 {[%clk 0:00:25.6]} 80. Rxg5+ {[%clk 0:00:15.7]}
80... Rxg5 {[%clk 0:00:26.3]} 81. Ke2 {[%clk 0:00:16.8]} 81... f1=Q+ {[%clk
0:00:27.5]} 0-1